bitfinex/quotes_ETHUSD_20240714
["timestamp","ask_amount","ask_price","bid_price","bid_amount"]
[1720931282547,0.22321548,3196.8,3195.7,3.12919]
[1720931282745,1.08404937,3196.7,3195.8,0.55]
[1720931282943,1.08404937,3196.6,3195.8,0.55]
[1720931283149,1.08404937,3196.5,3195.8,0.55]
[1720931283668,1.08404937,3196.5,3195.6,3.67925]
[1720931283964,1.08404937,3196.4,3195.7,3.12919]
[1720931284141,1.16226823,3196.3,3195.8,0.55]
[1720931284336,1.16226826,3196.2,3195.3,2.493]
[1720931284662,1.08414486,3196.1,3195.3,5.62249]
[1720931284866,1.08414486,3196.0,3195.3,5.62249]
[1720931285026,1.08414486,3196.1,3195.3,5.62249]
[1720931285457,1.08414486,3196.1,3195.4,3.12946]
[1720931285663,0.07823208,3196.7,3195.4,3.12946]
[1720931285664,1.08414486,3196.6,3195.4,3.12946]
[1720931285956,0.22321548,3196.8,3195.5,0.55]
[1720931285957,1.16237691,3196.5,3195.5,0.55]
[1720931286257,1.08414486,3196.4,3195.5,0.55]
[1720931286857,0.07823196,3196.3,3195.5,0.55]
[1720931287059,1.08414486,3196.2,3195.4,0.55]
[1720931287256,0.22321548,3196.8,3195.4,0.55]
[1720931287257,0.07823195,3196.1,3195.4,0.55]
[1720931287577,1.08416694,3196.0,3195.4,0.55]
[1720931287731,1.08416694,3196.6,3195.4,0.55]
[1720931288430,0.07823188,3196.5,3195.4,0.55]
[1720931288636,1.08416694,3196.4,3195.4,0.55]
[1720931288831,0.07823188,3196.3,3195.4,0.55]
[1720931289157,1.08416694,3196.2,3195.4,0.55]
[1720931289339,1.08416694,3196.2,3195.4,3.67949]
[1720931289543,0.22321548,3196.8,3195.5,3.12936]
[1720931289544,1.08416694,3196.6,3195.5,3.12936]
[1720931289755,1.08416694,3196.5,3195.7,3.12919]
[1720931289959,0.22321548,3196.8,3195.8,0.55]
[1720931289960,1.08416694,3196.4,3195.8,0.55]
[1720931290171,1.08416694,3196.3,3195.8,0.55]
[1720931290534,0.32630126,3196.3,3195.8,0.55]
[1720931290760,1.08405419,3196.2,3195.8,0.55]
[1720931290958,1.08405419,3196.1,3195.8,3.67909]
[1720931291271,1.08405419,3196.0,3195.8,3.67909]
[1720931291430,0.32630126,3196.3,3195.9,3.129]
[1720931291636,1.08404916,3196.2,3196.0,3.6789]
[1720931291861,0.32630126,3196.3,3196.1,3.12881]
[1720931292084,1.08402058,3196.2,3196.0,3.12889]
[1720931292242,0.32630126,3196.3,3196.1,0.55]
[1720931292446,1.08401387,3196.2,3196.1,0.55]
[1720931293864,0.32630126,3196.3,3196.1,0.55]
[1720931294056,1.08402783,3196.2,3196.1,0.55]
[1720931294255,0.32630126,3196.3,3196.1,0.55]
[1720931294456,1.0840311,3196.2,3196.1,0.55]
[1720931295051,1.0840311,3196.2,3196.1,3.67881]
[1720931296454,1.0840311,3196.2,3196.1,0.55]
[1720931296658,1.0840311,3196.2,3196.1,3.67881]
[1720931296966,0.32630126,3196.3,3196.2,3.12871]
[1720931297183,1.41031406,3196.3,3196.2,3.67871]
[1720931299206,1.41031406,3196.3,3196.2,6.80742]
[1720931299351,1.41031406,3196.3,3196.2,9.878862]
[1720931300182,1.41031406,3196.3,3196.2,13.007572]
[1720931300365,0.32630126,3196.3,3196.2,15.597572]
[1720931300551,1.41003013,3196.3,3196.2,15.597572]
[1720931301163,0.32630126,3196.3,3196.2,15.597572]
[1720931301798,2.16802562,3197.4,3197.1,3.12779]
[1720931301951,2.16802562,3197.4,3197.2,0.55]
[1720931301952,1.08366305,3197.3,3197.2,0.55]
[1720931302146,1.40990349,3197.3,3197.2,0.55]
[1720931303158,1.40990349,3197.3,3196.9,0.55]
[1720931303390,1.08366305,3197.2,3196.9,3.678]
[1720931303875,0.32624044,3197.3,3196.9,3.678]
[1720931303876,1.08369087,3197.1,3196.9,3.678]
[1720931304197,1.08369087,3197.0,3196.9,3.67803]
[1720931304348,1.08369087,3197.0,3196.9,7.486668]
[1720931306687,1.08369087,3197.0,3196.9,9.877368]
[1720931307054,0.32624044,3197.3,3197.2,6.25546]
[1720931307290,1.4098497,3197.3,3197.2,6.80546]
[1720931307452,0.32624044,3197.3,3197.2,6.80546]
[1720931307651,1.40984832,3197.3,3197.2,6.80546]
[1720931309248,1.40984832,3197.3,3197.2,7.486006]
[1720931309453,0.32624044,3197.3,3197.2,7.486006]
[1720931310000,0.32624044,3197.3,3196.6,3.1283]
[1720931310001,1.40973063,3197.3,3196.6,3.1283]
[1720931310202,1.40973063,3197.3,3196.4,2.3907]
[1720931310203,1.08361877,3197.2,3196.9,3.12802]
[1720931310350,0.32624044,3197.3,3196.9,3.12802]
[1720931310556,1.08365562,3197.2,3196.9,3.12802]
[1720931310818,1.08365562,3197.1,3196.7,3.12821]
[1720931310971,0.07820372,3197.1,3196.3,3.12859]
[1720931311310,1.08365562,3197.0,3196.3,3.12859]
[1720931311455,0.07820635,3196.9,3196.3,3.12859]
[1720931311656,1.08365562,3196.8,3196.3,3.12859]
[1720931311856,1.08365562,3196.7,3196.3,3.12859]
[1720931312097,1.08365562,3197.1,3196.3,3.12859]
[1720931312397,1.08365562,3197.1,3196.4,3.12848]
[1720931312398,1.08365562,3197.0,3196.4,3.12848]
[1720931312955,1.08365562,3197.0,3196.5,0.55]
[1720931313363,0.17676882,3197.1,3196.5,0.55]
[1720931313561,1.08381315,3197.0,3196.5,0.55]
[1720931313900,1.08381315,3196.9,3196.5,0.55]
[1720931314102,1.08381315,3197.0,3196.2,3.6787]
[1720931314410,0.07820622,3197.1,3195.7,5.71918]
[1720931314411,1.16201936,3196.9,3195.7,5.71918]
[1720931314562,1.08381315,3196.8,3195.7,3.12918]
[1720931314761,0.07821534,3196.7,3195.7,3.12918]
[1720931314998,1.08381315,3196.6,3195.7,3.12918]
[1720931315164,1.08381315,3196.6,3195.5,3.12938]
[1720931315165,0.07821532,3196.5,3195.8,3.12909]
[1720931315379,1.08381315,3196.4,3195.5,3.12938]
[1720931315579,1.08381315,3196.4,3195.7,3.12912]
[1720931315883,1.16202921,3196.3,3195.4,3.12948]
[1720931316052,2.29278194,3196.8,3195.2,2.59]
[1720931316053,1.16203968,3196.2,3195.2,3.12969]
[1720931316253,1.08381315,3196.1,3195.0,3.12986]
[1720931316480,0.07823461,3196.0,3195.0,3.12986]
[1720931316759,1.08429729,3195.9,3195.0,3.12986]
[1720931316980,1.16253188,3195.8,3195.2,3.12969]
[1720931317185,3.0,3196.3,3195.2,3.12969]
[1720931317186,1.08429729,3195.7,3195.2,3.12969]
[1720931317504,1.08429729,3195.6,3195.5,3.1294]
[1720931317823,0.32618916,3195.7,3195.5,3.1294]
[1720931317987,0.32618916,3195.7,3195.6,0.55]
[1720931318159,1.41026772,3195.7,3195.5,0.55]
[1720931318362,1.08407856,3195.6,3195.5,0.55]
[1720931318561,1.08407856,3195.6,3195.5,3.6794]
[1720931318758,1.08407856,3195.6,3195.5,6.8088]
[1720931318988,0.32618916,3195.7,3195.6,3.1293]
[1720931319263,0.32618916,3195.7,3195.6,3.6793]
[1720931319572,1.41025268,3195.7,3195.6,3.6793]
[1720931319968,0.32618916,3195.7,3195.6,3.6793]
[1720931320173,1.41020424,3195.7,3195.6,3.6793]
[1720931320403,0.32618916,3195.7,3195.6,4.428258]
[1720931320597,1.41019739,3195.7,3195.6,3.6793]
[1720931320972,0.32618916,3195.7,3195.6,3.6793]
[1720931321295,0.32618916,3195.7,3195.6,0.55]
[1720931321659,0.32618916,3195.7,3195.5,3.12939]
[1720931321844,0.32618916,3195.7,3195.6,0.55]
[1720931322297,1.41023872,3195.7,3195.6,0.55]
[1720931322663,0.32618916,3195.7,3195.6,0.55]
[1720931323069,0.32618916,3195.7,3195.6,7.176539]
[1720931324717,0.32618916,3195.7,3195.6,10.305839]
[1720931327310,4.79070048,3197.5,3196.5,3.12834]
[1720931327475,4.79070048,3197.5,3196.6,0.55]
[1720931327476,1.0837472,3197.4,3196.6,0.55]
[1720931327806,1.0837472,3197.3,3196.6,0.55]
[1720931328010,1.0837472,3197.2,3196.6,0.55]
[1720931328313,1.0837472,3197.1,3196.8,3.12804]
[1720931328485,0.32619053,3197.4,3196.9,0.55]
[1720931328486,1.0837472,3197.0,3196.9,0.55]
[1720931329189,1.0837472,3197.0,3196.9,6.80606]
[1720931329396,1.0837472,3197.0,3196.9,3.67803]
[1720931329773,0.32619053,3197.4,3197.0,3.12791]
[1720931329980,1.08361545,3197.3,3197.1,0.55]
[1720931330180,1.08361545,3197.2,3197.1,0.55]
[1720931330506,1.08361545,3197.2,3197.1,3.67783]
[1720931330706,1.08361545,3197.2,3197.1,0.55]
[1720931330913,1.08361545,3197.2,3197.0,0.55]
[1720931331120,1.08361545,3197.1,3197.0,3.67792]
[1720931332012,1.08361545,3197.1,3197.0,0.55]
[1720931332184,1.08361545,3197.1,3196.9,0.55]
[1720931332513,1.08361545,3197.0,3196.9,3.67801]
[1720931332716,0.32619053,3197.4,3196.9,3.67801]
[1720931332717,1.08361545,3197.3,3196.9,3.67801]
[1720931333110,0.32619053,3197.4,3196.9,3.67801]
[1720931333293,1.08362364,3197.3,3196.9,3.67801]
[1720931333627,0.32619053,3197.4,3197.0,3.17764333]
[1720931333781,1.0836183,3197.3,3197.1,0.55]
[1720931333981,1.0836183,3197.2,3197.1,0.55]
[1720931335214,1.0836183,3197.2,3197.1,3.67783]
[1720931336083,1.0836183,3197.2,3197.1,6.80566]
[1720931336286,0.32619053,3197.4,3197.3,3.12763]
[1720931336504,1.40967102,3197.4,3197.3,3.67763]
[1720931336787,1.40967102,3197.4,3197.3,6.80526]
[1720931336788,0.32619053,3197.4,3197.3,6.80526]
[1720931337592,0.32619053,3197.4,3197.3,6.75526]
[1720931337813,0.32619053,3197.4,3197.3,8.00620676]
[1720931340385,0.32619053,3197.4,3197.3,3.62763]
[1720931341012,0.32619053,3197.4,3197.3,6.75526]
[1720931341801,0.32619053,3197.4,3197.3,3.62763]
[1720931342325,0.32619053,3197.4,3197.3,6.75526]
[1720931343115,0.32619053,3197.4,3197.3,12.25979]
[1720931343301,0.32619053,3197.4,3197.3,13.679869]
[1720931348232,2.4972,3198.7,3198.3,3.12662]
[1720931348430,2.4972,3198.7,3198.4,0.55]
[1720931348724,1.40932662,3198.6,3198.4,0.55]
[1720931348926,1.08321339,3198.5,3198.4,0.55]
[1720931350302,1.08321339,3198.5,3198.4,3.67656]
[1720931351822,0.32611323,3198.6,3198.4,3.67656]
[1720931351823,0.32611323,3198.6,3198.5,3.12646]
[1720931352145,0.32611323,3198.6,3198.5,3.67646]
[1720931352609,1.40924537,3198.6,3198.5,3.67646]
[1720931353047,1.40924537,3198.6,3198.5,0.55]
[1720931353204,1.40924537,3198.6,3198.5,3.67646]
[1720931355207,2.49239516,3198.6,3198.5,3.67646]
[1720931355508,2.49239428,3198.6,3198.5,3.67646]
[1720931356296,2.44239428,3198.6,3198.5,3.67646]
[1720931358437,1.35925424,3198.6,3198.5,3.67646]
[1720931358649,2.44239424,3198.6,3198.5,0.55]
[1720931358830,1.60349366,3198.6,3197.7,3.12721]
[1720931359013,3.40629349,3198.5,3197.7,3.12721]
[1720931359212,1.08329349,3198.4,3197.8,3.12713]
[1720931360031,1.08329349,3198.4,3197.9,0.55]
[1720931360466,1.08329349,3198.4,3197.8,0.55]
[1720931360600,1.55984826,3198.4,3197.6,0.55]
[1720931360799,1.08329349,3198.3,3197.1,3.12776]
[1720931361030,0.07817775,3198.2,3197.1,3.12776]
[1720931361235,1.08329349,3198.1,3197.1,3.12776]
[1720931361411,1.08329349,3198.1,3197.2,3.1277]
[1720931361613,0.07817619,3198.0,3197.0,1.941]
[1720931361807,2.3771,3197.8,3197.0,1.941]
[1720931362040,1.08329349,3197.7,3197.0,1.941]
[1720931362240,1.08329349,3197.7,3196.6,5.0693]
[1720931362540,1.08329349,3197.7,3196.7,3.12816]
[1720931362541,1.42933284,3197.7,3196.7,3.12816]
[1720931362835,1.08329349,3197.6,3196.7,3.12816]
[1720931363425,0.07819375,3197.5,3196.7,3.12816]
[1720931363641,1.08329349,3197.4,3196.5,3.12839]
[1720931363940,0.07820188,3197.3,3196.3,3.1286]
[1720931364102,1.08329349,3197.2,3196.3,3.1286]
[1720931365051,1.0838517,3197.1,3196.4,0.55]
[1720931365201,1.0838517,3197.0,3196.4,0.55]
[1720931365397,1.0838517,3196.9,3196.4,0.55]
[1720931365632,1.0838517,3196.8,3196.4,0.55]
[1720931365839,1.0838517,3196.7,3196.4,0.55]
[1720931366007,1.0838517,3196.6,3196.4,0.55]
[1720931366202,1.0838517,3196.5,3196.3,0.55]
[1720931366402,1.0838517,3196.8,3196.3,0.55]
[1720931366640,0.07820733,3196.7,3195.7,3.12918]
[1720931366856,1.0838517,3196.6,3195.7,3.12918]
[1720931367359,1.0838517,3196.7,3195.7,3.12918]
[1720931367656,0.34609517,3196.8,3195.8,3.1291]
[1720931367657,1.0838517,3196.6,3195.8,3.1291]
[1720931367863,1.0838517,3196.7,3196.5,3.12841]
[1720931368074,0.32621086,3197.4,3196.5,3.635351]
[1720931368075,1.08385146,3196.6,3196.5,3.635351]
[1720931368358,2.70331086,3197.4,3196.7,3.12821]
[1720931368658,1.08375263,3197.3,3196.7,3.12821]
[1720931368961,1.08375263,3197.2,3196.8,0.55]
[1720931369256,1.08375263,3197.1,3196.8,0.55]
[1720931369567,1.08375263,3197.0,3196.8,0.55]
[1720931369861,2.70331086,3197.4,3196.8,0.55]
[1720931370063,1.08371641,3197.3,3196.8,0.55]
[1720931371058,0.07820111,3197.2,3196.5,0.55]
[1720931371221,1.08371641,3197.1,3196.5,0.55]
[1720931371422,1.08371641,3197.3,3196.5,0.55]
[1720931371751,1.08378638,3197.2,3196.5,0.55]
[1720931371963,1.08378638,3197.1,3196.5,4.046239]
[1720931372143,1.08376694,3197.0,3196.5,4.046239]
[1720931372327,2.70331086,3197.4,3196.5,4.046239]
[1720931372674,1.08372512,3197.3,3196.6,3.12829]
[1720931372828,1.08372512,3197.2,3196.7,0.55]
[1720931373024,1.08372512,3197.1,3196.7,3.6782]
[1720931373223,2.70331086,3197.4,3196.7,3.6782]
[1720931373224,1.08372512,3197.0,3196.8,3.12811]
[1720931373451,2.70331086,3197.4,3196.9,0.55]
[1720931373632,1.08371726,3197.3,3196.9,0.55]
[1720931373836,1.08371726,3197.2,3196.9,0.55]
[1720931374042,0.32621086,3197.4,3196.9,0.55]
[1720931374043,1.08371726,3197.1,3196.9,0.55]
[1720931374263,1.08371726,3197.0,3196.9,0.55]
[1720931374979,1.0837141,3197.0,3196.9,0.55]
[1720931375148,1.0837141,3197.0,3196.7,0.55]
[1720931375352,0.32621086,3197.4,3196.7,0.55]
[1720931375569,3.53909612,3197.3,3196.8,0.55]
[1720931375776,1.47032778,3197.2,3196.5,0.55]
[1720931376078,1.47032778,3197.2,3196.5,3.6784]
[1720931376079,1.08379708,3197.1,3196.5,3.6784]
[1720931376449,1.08379708,3197.1,3196.5,0.55]
[1720931377069,1.16199609,3197.1,3195.9,1.941]
[1720931377280,1.08379708,3197.0,3195.9,5.06992]
[1720931377442,0.07820998,3196.9,3196.0,3.12889]
[1720931377641,1.08379708,3196.8,3195.8,3.12901]
[1720931378006,2.3771,3196.6,3195.8,3.12901]
[1720931378339,1.08399111,3196.5,3195.8,3.12901]
[1720931378932,1.08399111,3196.5,3195.9,0.55]
[1720931379338,0.32620357,3196.4,3195.9,0.55]
[1720931379591,1.08399111,3196.3,3195.7,0.55]
[1720931379733,1.08399111,3196.3,3195.5,1.941]
[1720931380051,1.08399111,3196.3,3195.4,3.12947]
[1720931380372,0.40442749,3196.4,3195.2,3.12967]
[1720931380585,1.08413878,3196.3,3195.3,3.12959]
[1720931381384,0.32620357,3196.4,3195.4,3.12949]
[1720931381591,1.08413062,3196.2,3195.4,3.12949]
[1720931381750,1.08413062,3196.1,3195.6,3.12928]
[1720931381946,0.32620357,3196.4,3195.7,0.55]
[1720931382285,1.08410007,3196.3,3195.7,0.55]
[1720931382496,0.63192698,3196.4,3195.5,0.55]
[1720931382497,1.08410007,3196.2,3195.5,0.55]
[1720931382989,1.08410007,3196.1,3195.3,0.55]
[1720931383198,1.08410007,3196.3,3195.3,3.67959]
[1720931383354,1.08410007,3196.2,3195.3,3.67959]
[1720931383554,0.1794255,3196.2,3195.3,3.67959]
[1720931383756,1.08410007,3196.1,3195.3,3.67959]
[1720931384052,0.63192698,3196.4,3195.6,3.12924]
[1720931384053,1.08414222,3196.0,3195.6,3.12924]
[1720931384252,1.08414222,3196.0,3195.3,3.67956]
[1720931384253,1.08414222,3195.9,3195.7,0.55]
[1720931384453,0.63192698,3196.4,3195.3,3.67952]
[1720931384675,0.63192698,3196.4,3195.4,3.1294]
[1720931384877,1.08415014,3196.3,3195.5,0.55]
[1720931385082,1.08415014,3196.3,3195.5,3.67938]
[1720931385297,1.08414968,3196.2,3195.6,3.12929]
[1720931385482,1.08414968,3196.1,3195.7,3.67918]
[1720931385693,1.08414968,3196.0,3195.7,3.67918]
[1720931385913,1.08414968,3195.9,3195.7,3.67918]
[1720931386114,0.32620357,3196.4,3195.7,3.67918]
[1720931386326,1.08414195,3196.3,3195.8,3.12908]
[1720931386482,1.08414195,3196.2,3195.9,0.55]
[1720931386682,1.08414195,3196.1,3195.9,0.55]
[1720931386918,1.08414195,3196.0,3195.9,0.55]
[1720931388027,0.32620357,3196.4,3195.9,0.55]
[1720931388195,1.08413666,3196.3,3195.9,0.55]
[1720931388377,1.08405692,3196.2,3195.9,0.55]
[1720931388583,1.08405692,3196.1,3195.9,3.67899]
[1720931388897,1.08405692,3196.0,3195.9,3.67899]
[1720931389394,1.08405692,3196.0,3195.9,4.359797]
[1720931389581,0.32620357,3196.4,3195.9,1.28059359]
[1720931389779,0.32620357,3196.4,3196.2,3.12871]
[1720931389780,1.08395914,3196.3,3196.2,3.12871]
[1720931389982,1.08395914,3196.3,3196.2,3.67871]
[1720931390182,0.32620357,3196.4,3196.3,3.12861]
[1720931390390,0.32620357,3196.4,3196.3,3.67861]
[1720931390619,1.41006279,3196.4,3196.3,3.67861]
[1720931390919,1.41006279,3196.4,3196.3,4.359342]
[1720931391109,1.41006279,3196.4,3196.3,9.428952]
[1720931391434,0.32620357,3196.4,3196.3,9.428952]
[1720931392217,2.3949,3197.6,3196.9,3.12801]
[1720931392421,1.08370785,3197.5,3197.0,0.55]
[1720931392619,2.3949,3197.6,3197.0,0.55]
[1720931392620,1.08370785,3197.4,3197.0,0.55]
[1720931392930,1.08370785,3197.3,3197.0,0.55]
[1720931393223,0.3261171,3197.5,3197.0,0.55]
[1720931393224,1.08370785,3197.2,3197.0,0.55]
[1720931393424,1.08370785,3197.1,3196.8,0.55]
[1720931393635,1.08370785,3197.4,3196.8,0.55]
[1720931393916,1.46418034,3197.4,3196.8,0.55]
[1720931394127,1.46418034,3197.4,3196.5,3.12836]
[1720931394128,1.08370785,3197.3,3196.5,3.12836]
[1720931394286,1.08370785,3197.3,3196.6,0.55]
[1720931394485,0.38047249,3197.4,3196.6,0.55]
[1720931394731,1.08374381,3197.3,3196.6,0.55]
[1720931395025,1.08374381,3197.2,3196.6,0.55]
[1720931395520,1.16193782,3197.2,3196.6,0.55]
[1720931395693,1.08374381,3197.1,3196.6,0.55]
[1720931396020,1.08374381,3197.1,3196.3,0.55]
[1720931396232,1.08374381,3197.2,3196.2,0.55]
[1720931396382,1.08374381,3197.2,3196.2,0.917878]
[1720931396801,1.16194539,3197.2,3196.2,0.917878]
[1720931396982,1.16194539,3197.2,3196.2,0.55]
[1720931396983,1.08374381,3197.1,3196.2,0.55]
[1720931397422,1.08374381,3197.2,3196.2,0.55]
[1720931397783,1.08390256,3197.1,3196.2,0.55]
[1720931398013,1.08390256,3197.0,3196.2,0.55]
[1720931398194,1.08390256,3196.9,3196.2,4.046578]
[1720931398402,1.0838369,3196.8,3196.2,4.046578]
[1720931398619,1.0838369,3196.7,3196.2,4.046578]
[1720931398824,1.0838369,3196.6,3196.2,4.046578]
[1720931399120,1.0838369,3196.5,3196.2,0.917878]
[1720931399428,3.3261171,3197.5,3196.5,3.12834]
[1720931399605,1.08375546,3197.4,3196.6,0.55]
[1720931399929,3.3261171,3197.5,3196.6,0.55]
[1720931399930,1.08375546,3197.3,3196.7,0.04973542]
[1720931400094,1.08375546,3197.2,3196.8,3.93218354]
[1720931400291,1.08375546,3197.1,3196.9,0.04972675]
[1720931400515,0.3261171,3197.5,3197.0,0.55]
[1720931400716,1.08354911,3197.4,3197.2,3.12767]
[1720931400936,0.3261171,3197.5,3197.3,0.55]
[1720931401233,1.0835382,3197.4,3197.3,0.55]
[1720931403236,1.0835382,3197.4,3196.3,3.1286]
[1720931403400,1.08376452,3197.3,3196.0,3.12889]
[1720931403730,1.08376452,3197.2,3196.0,0.506989]
[1720931403912,1.08376452,3197.4,3196.3,3.12854]
[1720931404223,1.08376452,3197.3,3196.3,3.12854]
[1720931404447,1.08376452,3197.4,3196.3,3.12854]
[1720931404748,1.08376452,3197.3,3196.4,3.12849]
[1720931404917,1.08376452,3197.4,3196.4,3.12849]
[1720931405645,1.08376452,3197.4,3196.6,3.12829]
[1720931406006,1.08376452,3197.4,3196.7,0.55]
[1720931406205,1.08376452,3197.4,3196.9,3.12799]
[1720931406433,1.08376452,3197.4,3197.0,0.55]
[1720931406636,0.3261171,3197.5,3197.0,3.67792]
[1720931406798,1.08365243,3197.4,3197.0,3.67792]
[1720931407132,1.08365243,3197.3,3197.0,3.67792]
[1720931407341,1.08365243,3197.2,3197.0,0.55]
[1720931407545,1.08365243,3197.1,3196.8,0.55]
[1720931407706,1.08365243,3197.1,3196.8,4.240039]
[1720931407910,1.08365243,3197.0,3196.8,4.240039]
[1720931408109,1.08365243,3196.9,3196.8,4.240039]
[1720931408308,1.08365243,3196.9,3196.8,7.368159]
[1720931409416,1.08365243,3196.9,3196.8,6.80624]
[1720931409900,1.08365243,3196.9,3196.3,3.1286]
[1720931409901,0.32616377,3197.0,3196.5,3.12836]
[1720931410106,1.08371152,3196.9,3196.5,3.12836]
[1720931410349,1.08371152,3196.8,3196.3,3.12859]
[1720931410587,1.08378055,3196.7,3196.3,3.12854]
[1720931410842,0.32616377,3197.0,3196.3,3.12854]
[1720931410995,1.08378485,3196.9,3196.3,3.12854]
[1720931411205,1.08378485,3196.8,3196.3,3.12854]
[1720931411402,1.08378485,3196.7,3196.6,3.12832]
[1720931411635,0.32616377,3197.0,3196.8,3.12807]
[1720931411939,1.08371869,3196.9,3196.8,3.12807]
[1720931412104,1.08371869,3196.9,3196.8,3.67807]
[1720931413099,1.08369149,3196.9,3196.8,3.67807]
[1720931414436,1.08369149,3196.9,3196.8,0.55]
[1720931414642,1.08369149,3196.9,3196.7,0.55]
[1720931414799,1.08369149,3196.8,3196.7,0.55]
[1720931415005,1.08369149,3196.9,3196.7,0.55]
[1720931415313,1.08369149,3196.9,3196.2,5.06968]
[1720931415513,1.08369149,3196.9,3196.3,3.12859]
[1720931415733,1.08369149,3196.9,3196.5,3.1284]
[1720931416238,1.08369149,3196.9,3196.3,3.12859]
[1720931416436,1.08378246,3196.8,3196.3,3.12859]
[1720931416626,1.08378246,3196.7,3196.4,3.12851]
[1720931416834,1.08378246,3196.6,3196.5,6.569691]
[1720931417128,1.08378246,3196.6,3196.5,7.119691]
[1720931417636,1.08378246,3196.6,3196.5,3.991271]
[1720931417841,1.08378246,3196.6,3196.5,3.67842]
[1720931419047,1.08378246,3196.6,3196.5,0.55]
[1720931419358,1.08378246,3196.6,3195.7,3.12918]
[1720931419544,1.08378246,3196.5,3195.7,3.12918]
[1720931419714,1.08404923,3196.4,3195.7,3.12918]
[1720931419921,1.08404923,3196.3,3195.7,3.12918]
[1720931420129,1.08407112,3196.2,3195.7,3.12918]
[1720931420329,1.08407112,3196.1,3195.7,3.12918]
[1720931420529,1.08407112,3196.6,3195.7,3.12918]
[1720931420750,1.08407112,3196.5,3195.6,3.12928]
[1720931420947,3.37895225,3196.7,3195.6,3.12928]
[1720931421147,1.42196635,3196.6,3195.6,3.12928]
[1720931421464,1.16228883,3196.5,3195.5,3.1294]
[1720931421756,1.08407112,3196.4,3195.5,3.1294]
[1720931421960,0.07821772,3196.3,3194.9,2.3561]
[1720931422166,3.44487112,3196.2,3194.9,3.12996]
[1720931422325,3.44487112,3196.2,3194.7,3.13015]
[1720931422326,1.43638,3196.1,3194.7,3.13015]
[1720931422522,1.16231276,3196.0,3194.5,5.07135]
[1720931422755,0.07824164,3196.0,3194.5,5.07129]
[1720931422959,1.0843601,3195.9,3194.5,1.941]
[1720931423170,1.0843601,3195.8,3194.5,1.941]
[1720931423374,0.33791727,3195.7,3194.5,1.941]
[1720931423530,1.0843601,3195.6,3194.5,1.941]
[1720931423884,1.0843601,3195.5,3194.5,1.941]
[1720931424083,1.0843601,3195.7,3194.5,1.941]
[1720931424239,1.0843601,3195.6,3194.5,1.941]
[1720931424437,1.0843601,3195.7,3194.5,1.941]
[1720931424638,1.0843601,3195.7,3194.5,2.448145]
[1720931425271,1.0843601,3195.7,3194.6,3.13026]
[1720931425452,1.0843601,3195.7,3194.7,0.55]
[1720931426072,0.3261901,3195.8,3194.7,0.55]
[1720931426373,2.3608,3195.6,3194.6,0.55]
[1720931426577,1.43673722,3195.5,3194.6,3.13027]
[1720931426758,1.08439366,3195.4,3194.7,3.68015]
[1720931427151,1.08439366,3195.5,3194.7,3.68015]
[1720931427367,1.08439366,3195.4,3194.7,0.55]
[1720931427565,1.08439366,3195.3,3194.6,0.55]
[1720931427773,1.08439366,3195.2,3194.6,1.231077]
[1720931427947,1.08439366,3195.1,3194.6,1.231077]
[1720931428275,2.3608,3195.6,3194.6,1.231077]
[1720931428478,1.08440111,3195.5,3194.6,0.55]
[1720931428648,1.16264623,3195.4,3194.4,3.68044]
[1720931428844,1.08440111,3195.3,3194.4,3.68044]
[1720931429184,1.08440111,3195.2,3194.4,3.68044]
[1720931429490,1.08440675,3195.1,3194.4,1.231109]
[1720931429667,0.07824489,3195.5,3194.4,1.231109]
[1720931429853,0.07824489,3195.5,3194.4,0.55]
[1720931430056,0.07824489,3195.5,3193.7,2.3561]
[1720931430057,1.08452875,3195.4,3193.8,3.13105]
[1720931430269,1.16278266,3195.3,3193.8,3.13105]
[1720931430582,1.16278265,3195.2,3193.9,3.13096]
[1720931430789,1.08452875,3195.1,3193.9,3.679666]
[1720931431093,0.0782539,3195.0,3193.9,0.548706]
[1720931431307,3.44532875,3194.9,3193.7,3.13115]
[1720931431598,1.1627851,3194.8,3193.7,3.13115]
[1720931431903,1.08452875,3194.7,3193.6,1.941]
[1720931432201,1.08452875,3194.7,3193.7,0.1941]
[1720931432560,1.08464727,3194.6,3193.7,0.1941]
[1720931432800,0.35235851,3194.8,3193.7,0.1941]
[1720931432965,1.08464293,3194.7,3193.7,0.1941]
[1720931433175,1.08464293,3194.6,3193.7,0.1941]
[1720931433486,2.3608,3194.9,3193.8,3.4504]
[1720931433701,1.08463768,3194.8,3193.8,3.4504]
[1720931433911,1.08463768,3194.7,3193.8,3.4504]
[1720931434061,1.08463768,3194.8,3193.8,3.4504]
[1720931434260,1.08463949,3194.7,3193.8,3.4504]
[1720931434570,2.3608,3194.9,3193.9,4.358455]
[1720931434775,1.08464057,3194.8,3193.9,4.358455]
[1720931435001,3.0,3195.4,3194.1,3.13069]
[1720931435157,1.08458385,3195.3,3194.2,0.59987012]
[1720931435359,2.3608,3195.5,3194.2,0.59987012]
[1720931435360,1.08458385,3195.2,3194.2,0.55]
[1720931435653,1.08458385,3195.2,3193.4,3.13136]
[1720931435654,1.08458385,3195.1,3193.4,3.13136]
[1720931435965,1.08458385,3195.1,3192.3,3.44629]
[1720931435966,1.16302693,3195.0,3192.9,4.2971]
[1720931436169,3.4455579,3194.9,3193.0,3.13184]
[1720931436487,4.16304016,3194.8,3193.1,3.13173]
[1720931436689,1.16303645,3194.7,3193.1,3.13173]
[1720931436867,2.3608,3194.5,3193.1,3.13173]
[1720931437068,1.42931369,3194.4,3193.2,0.313173]
[1720931437391,1.0847579,3194.3,3193.2,3.444823]
[1720931437554,0.34455579,3194.4,3193.2,3.444823]
[1720931438497,2.3608,3194.5,3193.6,3.13125]
[1720931438708,2.3608,3194.5,3193.7,3.73103759]
[1720931439010,0.39671901,3195.6,3194.2,3.13067]
[1720931439011,0.32604811,3194.3,3194.2,3.13067]
[1720931439297,0.32604811,3194.3,3193.9,3.13091]